bitfinex/quotes_BTCUSD_20240727
["timestamp","ask_amount","ask_price","bid_price","bid_amount"]
[1722118899938,0.002,68886.0,68885.0,0.016924]
[1722118899939,0.001,68886.0,68885.0,0.016924]
[1722118900150,0.002,68886.0,68885.0,0.002924]
[1722118900355,0.002,68886.0,68885.0,0.000924]
[1722118900632,0.119133,68886.0,68885.0,0.028924]
[1722118900755,0.728367,68886.0,68885.0,0.014924]
[1722118900956,0.4961,68886.0,68885.0,0.014924]
[1722118901204,0.4971,68886.0,68885.0,0.014924]
[1722118901354,0.729367,68886.0,68885.0,0.028924]
[1722118902253,0.727367,68886.0,68885.0,0.014924]
[1722118902661,0.726367,68886.0,68885.0,0.028924]
[1722118902869,0.728367,68886.0,68885.0,0.014924]
[1722118903397,0.729367,68886.0,68885.0,0.025924]
[1722118903894,0.4971,68886.0,68885.0,0.011924]
[1722118904080,0.4971,68886.0,68885.0,0.022924]
[1722118906955,1.11189357,68886.0,68885.0,0.022924]
[1722118907160,1.16982853,68886.0,68885.0,0.022924]
[1722118907765,0.725402,68882.0,68881.0,0.009987]
[1722118907974,0.727402,68882.0,68881.0,0.009987]
[1722118908183,1.35677082,68882.0,68881.0,0.009987]
[1722118908708,1.61183811,68882.0,68881.0,0.009937]
[1722118908898,0.959764,68875.0,68874.0,0.008987]
[1722118909087,1.58915582,68875.0,68874.0,0.008987]
[1722118909488,1.58915582,68875.0,68865.0,0.008987]
[1722118909489,1.047507,68866.0,68865.0,0.008987]
[1722118909693,1.58929482,68866.0,68865.0,0.008987]
[1722118910261,1.192266,68862.0,68841.0,0.009987]
[1722118910502,1.40065382,68862.0,68841.0,0.009987]
[1722118910956,1.73318571,68862.0,68841.0,0.009987]
[1722118911134,0.72704,68842.0,68841.0,0.009987]
[1722118911337,0.262208,68842.0,68841.0,0.009987]
[1722118911917,0.492624,68842.0,68841.0,0.009987]
[1722118912122,0.494624,68842.0,68841.0,0.009987]
[1722118912323,0.495624,68842.0,68841.0,0.009987]
[1722118912586,0.51542224,68842.0,68841.0,0.009987]
[1722118912756,0.51742224,68842.0,68841.0,0.009987]
[1722118913134,0.02479824,68842.0,68841.0,0.009987]
[1722118913884,0.02279824,68842.0,68841.0,0.130196]
[1722118914089,0.02479824,68842.0,68841.0,0.013987]
[1722118914301,0.02479824,68842.0,68841.0,0.01969917]
[1722118914494,0.02479824,68842.0,68841.0,0.01569917]
[1722118914697,0.02479824,68842.0,68841.0,0.02369917]
[1722118914993,0.02579824,68842.0,68841.0,0.02369917]
[1722118915631,0.02679824,68842.0,68841.0,0.02369917]
[1722118915826,0.02579824,68842.0,68841.0,0.02369917]
[1722118916058,0.02279824,68842.0,68841.0,0.01569917]
[1722118916262,0.02379824,68842.0,68841.0,0.01569917]
[1722118916466,0.02379824,68842.0,68841.0,0.01669917]
[1722118916467,0.02479824,68842.0,68841.0,0.01669917]
[1722118916659,0.02679824,68842.0,68841.0,0.01669917]
[1722118916828,0.02579824,68842.0,68841.0,0.01569917]
[1722118917197,0.02679824,68842.0,68841.0,0.01669917]
[1722118917576,0.02579824,68842.0,68841.0,0.01569917]
[1722118917836,0.02479824,68842.0,68841.0,0.01569917]
[1722118918137,0.02579824,68842.0,68841.0,0.01669917]
[1722118918339,0.02679824,68842.0,68841.0,0.02569917]
[1722118918518,0.02579824,68842.0,68841.0,0.01669917]
[1722118918925,0.02679824,68842.0,68841.0,0.02569917]
[1722118919149,0.02479824,68842.0,68841.0,0.10180425]
[1722118919441,0.02479824,68842.0,68841.0,0.60678674]
[1722118919667,0.02479824,68842.0,68841.0,0.83920574]
[1722118919668,0.02579824,68842.0,68841.0,0.83920574]
[1722118919794,0.02479824,68842.0,68841.0,0.83820574]
[1722118920031,0.02579824,68842.0,68841.0,0.84920574]
[1722118920527,0.02479824,68842.0,68841.0,0.83820574]
[1722118920770,0.02579824,68842.0,68841.0,0.12089917]
[1722118921012,0.02379824,68842.0,68841.0,0.22810817]
[1722118921242,0.02379824,68842.0,68841.0,0.23710817]
[1722118921243,0.02479824,68842.0,68841.0,0.23710817]
[1722118924233,0.02479824,68842.0,68841.0,0.03869917]
[1722118924479,0.02679824,68842.0,68841.0,0.03869917]
[1722118924705,0.17079824,68842.0,68841.0,0.03869917]
[1722118925170,0.02679824,68842.0,68841.0,0.03869917]
[1722118925694,0.02679824,68842.0,68836.0,0.1]
[1722118925695,0.18313283,68837.0,68836.0,0.1]
[1722118925951,0.18513283,68837.0,68836.0,0.1]
[1722118926363,0.002,68835.0,68834.0,0.00900517]
[1722118926568,0.18513283,68837.0,68830.0,0.100924]
[1722118926779,0.18513283,68837.0,68836.0,0.014]
[1722118927381,0.20792945,68837.0,68836.0,0.014]
[1722118928387,0.20892945,68837.0,68836.0,0.016]
[1722118928799,0.20892945,68837.0,68836.0,0.002]
[1722118929781,0.002,68831.0,68830.0,0.00963114]
[1722118929980,0.002,68831.0,68830.0,0.10963114]
[1722118930538,0.20692945,68837.0,68831.0,0.145]
[1722118930754,0.20692945,68837.0,68836.0,0.348654]
[1722118931816,0.20592945,68837.0,68836.0,0.348654]
[1722118932215,0.20592945,68837.0,68836.0,0.349654]
[1722118932216,0.20692945,68837.0,68836.0,0.349654]
[1722118932495,0.20692945,68837.0,68836.0,0.73234957]
[1722118932737,0.20692945,68837.0,68836.0,0.83234957]
[1722118932953,0.20692945,68837.0,68836.0,0.83734957]
[1722118933148,0.20692945,68837.0,68836.0,0.83534957]
[1722118933376,0.20692945,68837.0,68836.0,0.84078635]
[1722118933660,0.20892945,68837.0,68836.0,0.11743678]
[1722118933861,0.20892945,68837.0,68836.0,0.12243678]
[1722118933862,0.20992945,68837.0,68836.0,0.12243678]
[1722118934646,0.20892945,68837.0,68836.0,0.11043678]
[1722118935042,0.20892945,68837.0,68836.0,0.00743678]
[1722118935365,0.20992945,68837.0,68836.0,0.01043678]
[1722118935566,0.21092945,68837.0,68836.0,0.01243678]
[1722118935773,0.20892945,68837.0,68836.0,0.01043678]
[1722118936203,0.20992945,68837.0,68836.0,0.01043678]
[1722118936361,0.20892945,68837.0,68836.0,0.01043678]
[1722118936564,0.20792945,68837.0,68836.0,0.00636078]
[1722118936723,0.20792945,68837.0,68836.0,0.006924]
[1722118936724,0.20892945,68837.0,68836.0,0.006924]
[1722118936928,0.20992945,68837.0,68836.0,0.006924]
[1722118937129,0.20992945,68837.0,68836.0,0.01236078]
[1722118937991,0.20792945,68837.0,68836.0,0.01236078]
[1722118938176,0.20692945,68837.0,68836.0,0.00636078]
[1722118938455,0.20892945,68837.0,68836.0,0.00636078]
[1722118938619,0.20692945,68837.0,68836.0,0.00636078]
[1722118938824,0.20992945,68837.0,68836.0,0.01036078]
[1722118942994,0.20792945,68837.0,68836.0,0.58947435]
[1722118943183,0.20792945,68837.0,68836.0,0.71247435]
[1722118943536,0.20792945,68837.0,68836.0,0.94491035]
[1722118945722,0.20792945,68837.0,68836.0,1.17734635]
[1722118946104,0.20792945,68837.0,68836.0,1.3620747]
[1722118947357,0.20692945,68837.0,68836.0,1.3620747]
[1722118947592,0.16789953,68837.0,68836.0,1.6817307]
[1722118947797,0.16789953,68837.0,68836.0,1.6917307]
[1722118947798,0.15770353,68837.0,68836.0,1.6917307]
[1722118948200,0.15870353,68837.0,68836.0,1.58500235]
[1722118948349,0.15870353,68837.0,68836.0,1.70571337]
[1722118948580,0.15870353,68837.0,68836.0,1.58500235]
[1722118948754,0.15870353,68837.0,68836.0,1.70571338]
[1722118950240,0.15870353,68837.0,68836.0,1.70571369]
[1722118951327,0.15870353,68837.0,68836.0,1.4732777]
[1722118952419,0.15870353,68837.0,68836.0,1.3860577]
[1722118952636,0.15870353,68837.0,68836.0,1.1536217]
[1722118952765,0.15870353,68837.0,68836.0,0.88871035]
[1722118953151,0.15870353,68837.0,68836.0,1.12114635]
[1722118953765,0.15870353,68837.0,68836.0,0.88871035]
[1722118955240,0.15870353,68837.0,68836.0,0.65627435]
[1722118955443,0.15870353,68837.0,68836.0,0.15057878]
[1722118955657,0.15870353,68837.0,68836.0,0.38301478]
[1722118955840,0.15870353,68837.0,68836.0,0.61545078]
[1722118956040,0.15870353,68837.0,68836.0,0.15057878]
[1722118956255,0.15870353,68837.0,68836.0,0.38301478]
[1722118956478,0.15870353,68837.0,68836.0,0.61545078]
[1722118956753,0.15870353,68837.0,68836.0,0.48301478]
[1722118957381,0.15870353,68837.0,68836.0,0.71545078]
[1722118957578,0.15870353,68837.0,68836.0,0.48301478]
[1722118958562,0.15870353,68837.0,68836.0,1.03101035]
[1722118958884,0.15870353,68837.0,68836.0,1.26344635]
[1722118961698,0.15870353,68837.0,68836.0,1.12114635]
[1722118968344,0.15954353,68837.0,68836.0,1.12114635]
[1722118968737,0.09347353,68837.0,68836.0,1.70382544]
[1722118968927,0.07507,68837.0,68836.0,1.70382544]
[1722118970307,0.07307,68837.0,68836.0,1.67582544]
[1722118970636,0.07407,68837.0,68836.0,1.68981741]
[1722118971658,0.04131,68837.0,68836.0,1.70381741]
[1722118972285,0.1394,68860.0,68859.0,0.580895]
[1722118972469,0.00084,68861.0,68860.0,0.348532]
[1722118972694,0.00084,68861.0,68860.0,0.83713297]
[1722118973424,0.00084,68861.0,68860.0,0.86013297]
[1722118973623,0.00084,68861.0,68860.0,0.83713297]
[1722118974422,0.00084,68861.0,68860.0,0.85113297]
[1722118974629,0.00084,68861.0,68860.0,0.61877797]
[1722118974831,0.14024,68861.0,68860.0,0.4685184]
[1722118975168,0.14024,68861.0,68860.0,0.4775184]
[1722118975569,0.14024,68861.0,68860.0,0.2361634]
[1722118975739,0.14024,68861.0,68860.0,0.4825184]
[1722118975950,0.14024,68861.0,68860.0,0.49121977]
[1722118976178,0.14224,68861.0,68860.0,0.49121977]
[1722118976582,0.14024,68861.0,68860.0,0.49121977]
[1722118977206,0.14024,68861.0,68860.0,0.25886477]
[1722118977420,0.14024,68861.0,68860.0,0.49121977]
[1722118977421,0.14224,68861.0,68860.0,0.49121977]
[1722118979230,0.14024,68861.0,68860.0,0.72357477]
[1722118980154,0.14024,68861.0,68860.0,0.87383434]
[1722118980565,0.14024,68861.0,68860.0,0.49121977]
[1722118980717,0.14224,68861.0,68860.0,0.14268777]
[1722118981248,0.14224,68861.0,68860.0,0.04268777]
[1722118983870,0.14224,68861.0,68860.0,0.0339864]
[1722118984517,0.14224,68861.0,68860.0,0.028]
[1722118984870,0.16503002,68861.0,68860.0,0.028]
[1722118985237,0.16503002,68861.0,68860.0,0.03338776]
[1722118985238,0.16303002,68861.0,68860.0,0.03338776]
[1722118986835,0.16303002,68861.0,68860.0,0.38191976]
[1722118987038,0.16303002,68861.0,68860.0,0.14956476]
[1722118988383,0.16503002,68861.0,68860.0,0.14956476]
[1722118988571,0.16503002,68861.0,68860.0,0.03338776]
[1722118988972,0.16503002,68861.0,68860.0,0.14956476]
[1722118990847,0.16503002,68861.0,68860.0,0.99688933]
[1722118990848,0.02363002,68861.0,68860.0,0.99688933]
[1722118991062,0.02363002,68861.0,68860.0,1.11988933]
[1722118991689,0.02363002,68861.0,68860.0,0.88753433]
[1722118993333,0.02363002,68861.0,68860.0,1.11988933]
[1722118994285,0.02363002,68861.0,68860.0,1.49424433]
[1722118994465,0.1427,68878.0,68877.0,0.116149]
[1722118994691,0.1427,68878.0,68877.0,0.580745]
[1722118994921,0.1427,68878.0,68877.0,0.58667007]
[1722118995033,0.16548433,68878.0,68877.0,0.12207407]
[1722118995234,0.02478433,68878.0,68877.0,0.12207407]
[1722118995439,0.02278433,68878.0,68877.0,0.58667007]
[1722118996503,0.02278433,68878.0,68877.0,0.60067007]
[1722118997150,0.02278433,68878.0,68877.0,0.61467007]
[1722118997353,0.02278433,68878.0,68877.0,0.60067007]
[1722118997582,0.02278433,68878.0,68877.0,0.58667007]
[1722118997803,0.02278433,68878.0,68877.0,0.60067007]
[1722118999087,0.02278433,68878.0,68877.0,0.61467007]
[1722119000815,0.02362433,68878.0,68877.0,0.61467007]
[1722119001611,0.00084,68878.0,68877.0,0.61467007]
[1722119003999,0.00284,68878.0,68877.0,0.03392507]
[1722119004225,0.14554,68878.0,68877.0,0.03392507]
[1722119005614,0.14554,68878.0,68877.0,0.028]
[1722119005819,0.14554,68878.0,68877.0,0.03392507]
[1722119008165,0.14354,68878.0,68877.0,0.03392507]
[1722119008629,0.14554,68878.0,68877.0,0.03392507]
[1722119008825,0.14354,68878.0,68877.0,0.03392507]
[1722119009236,0.16632466,68878.0,68877.0,0.03392507]
[1722119009459,0.16832466,68878.0,68877.0,0.03392507]
[1722119011461,0.16832466,68878.0,68874.0,0.12509691]
[1722119011462,0.16632466,68878.0,68874.0,0.12509691]
[1722119011664,0.16632466,68878.0,68877.0,0.00719473]
[1722119011844,0.16632466,68878.0,68874.0,0.116153]
[1722119012043,0.16632466,68878.0,68877.0,0.00719473]
[1722119012244,0.16632466,68878.0,68874.0,0.116153]
[1722119012443,0.16632466,68878.0,68877.0,0.12334373]
[1722119012645,0.16632466,68878.0,68877.0,0.116149]
[1722119012864,0.16632466,68878.0,68877.0,0.12334373]
[1722119013271,0.16632466,68878.0,68877.0,0.35564173]
[1722119013689,0.16632466,68878.0,68877.0,0.36964173]
[1722119015574,0.02362466,68878.0,68877.0,0.60193973]
[1722119015774,0.02362466,68878.0,68877.0,0.36964173]
[1722119017488,0.02562466,68878.0,68877.0,0.36964173]
[1722119021168,0.02562466,68878.0,68877.0,0.02119473]
[1722119022099,0.17022466,68878.0,68877.0,0.02119473]
[1722119022588,0.14744,68878.0,68877.0,0.02119473]
[1722119022724,0.20651564,68878.0,68877.0,0.02119473]
[1722119024244,0.14744,68878.0,68877.0,0.02119473]
[1722119024390,0.20612837,68878.0,68877.0,0.02119473]
[1722119024696,0.20612858,68878.0,68877.0,0.02119473]
[1722119025919,0.22891324,68878.0,68877.0,0.02119473]
[1722119026676,0.17022466,68878.0,68877.0,0.02119473]
[1722119026878,0.22886285,68878.0,68877.0,0.02119473]
[1722119027578,0.22889262,68878.0,68877.0,0.014]
[1722119028237,0.002,68872.0,68871.0,0.00881108]
[1722119028447,0.002,68872.0,68870.0,0.1]
[1722119028648,0.002,68871.0,68870.0,0.21616]
[1722119029281,0.0247859,68871.0,68870.0,0.21616]
[1722119030307,0.0247859,68871.0,68870.0,0.22488342]
[1722119031113,0.0257859,68871.0,68870.0,0.23788342]
[1722119031332,0.0257859,68871.0,68870.0,0.24788342]
[1722119031504,0.003,68871.0,68870.0,0.24788342]
[1722119031711,0.003,68871.0,68870.0,0.12172342]
[1722119032570,0.0848,68871.0,68870.0,0.02172342]
[1722119032745,0.0858,68871.0,68870.0,0.03172342]
[1722119033698,0.0858,68871.0,68870.0,0.03264742]
[1722119033871,0.1517,68871.0,68870.0,0.03264742]
[1722119034873,0.17448614,68871.0,68870.0,0.03264742]
[1722119035074,0.1517,68871.0,68870.0,0.03264742]
[1722119037784,0.1517,68871.0,68870.0,0.023924]
[1722119039446,0.1517,68871.0,68870.0,0.03113913]
[1722119040021,0.32645504,68871.0,68870.0,0.03113913]
[1722119040236,0.79109104,68871.0,68870.0,0.023924]
[1722119040437,0.88275457,68871.0,68870.0,0.023924]
[1722119040799,0.94165779,68871.0,68870.0,0.023924]
[1722119041001,0.94165779,68871.0,68870.0,0.013924]
[1722119041002,0.70833979,68871.0,68870.0,0.013924]
[1722119041142,0.81648312,68871.0,68870.0,0.013924]
[1722119041331,0.70733979,68871.0,68870.0,0.005924]
[1722119041584,0.47702179,68871.0,68870.0,0.005924]
[1722119041792,0.21060322,68871.0,68870.0,0.000924]
[1722119042214,0.06490322,68871.0,68870.0,0.00813913]
[1722119042618,0.06290322,68871.0,68870.0,0.00813913]
[1722119042823,0.08603165,68871.0,68870.0,0.00813913]
[1722119043187,0.0247872,68871.0,68870.0,0.12429913]
[1722119043394,0.08731863,68878.0,68870.0,0.24046013]
[1722119043395,0.002,68876.0,68870.0,0.24046013]
[1722119043595,0.19177931,68878.0,68870.0,0.24046013]
[1722119043596,0.002,68875.0,68872.0,0.116157]
[1722119043744,0.002,68874.0,68872.0,0.115157]
[1722119043923,0.002,68874.0,68873.0,0.00720639]
[1722119044143,0.002,68874.0,68873.0,0.00824079]
[1722119044951,0.003,68874.0,68873.0,0.00824079]
[1722119045421,0.06221191,68874.0,68873.0,0.02024079]
[1722119045600,0.003,68874.0,68873.0,0.02024079]
[1722119045804,0.1517,68874.0,68873.0,0.02924079]
[1722119045959,0.1517,68874.0,68873.0,0.021]
[1722119045960,0.55935944,68874.0,68873.0,0.021]
[1722119046304,0.70961901,68874.0,68873.0,0.021]
[1722119046599,1.02955021,68874.0,68873.0,0.021]
[1722119047123,1.02855021,68874.0,68873.0,0.009]
[1722119047322,0.96471433,68874.0,68873.0,0.016]
[1722119047478,0.94092701,68874.0,68873.0,0.007]
[1722119047680,0.94192701,68874.0,68873.0,0.013]
[1722119048089,1.04998681,68874.0,68873.0,0.013]
[1722119048301,0.94192701,68874.0,68873.0,0.013]
[1722119048509,1.04998681,68874.0,68873.0,0.013]
[1722119048990,1.04898681,68874.0,68873.0,0.007]
[1722119049208,1.04923786,68874.0,68873.0,0.007]
[1722119049388,0.94129244,68874.0,68873.0,0.007]
[1722119049607,0.94629244,68874.0,68873.0,0.001]
[1722119049810,0.28001787,68874.0,68873.0,0.001]
[1722119050009,0.22126287,68874.0,68873.0,0.002]
[1722119050211,0.21526287,68874.0,68873.0,0.001]
[1722119050392,0.21526287,68874.0,68873.0,0.00924079]
[1722119050591,0.22026287,68874.0,68873.0,0.001]
[1722119050987,0.22026287,68874.0,68870.0,0.000924]
[1722119050988,0.002,68871.0,68870.0,0.000924]
[1722119051187,0.002,68872.0,68871.0,0.116159]
[1722119051394,0.008,68874.0,68873.0,0.001]
[1722119051612,0.008,68874.0,68873.0,0.00924079]
[1722119052005,0.002,68874.0,68873.0,0.00824079]
[1722119052211,0.002,68874.0,68870.0,0.122084]
[1722119052423,0.002,68871.0,68870.0,0.005924]
[1722119052624,0.002,68871.0,68870.0,0.122084]
[1722119052843,0.002,68871.0,68870.0,0.117084]
[1722119053359,0.003,68871.0,68870.0,0.123084]
[1722119053761,0.003,68871.0,68870.0,0.355405]
[1722119054463,0.003,68871.0,68870.0,0.36530619]
[1722119055065,0.003,68871.0,68870.0,0.37030619]
[1722119055268,0.0257862,68871.0,68870.0,0.37030619]
[1722119055876,0.003,68871.0,68870.0,0.37030619]
[1722119058418,0.001,68871.0,68870.0,0.37030619]
[1722119058621,0.001,68871.0,68870.0,0.60262719]
[1722119060426,0.0237862,68871.0,68870.0,0.83494819]
[1722119060816,0.001,68871.0,68870.0,0.83494819]
[1722119061462,0.001,68871.0,68870.0,0.82994819]
[1722119061882,0.002,68871.0,68870.0,0.84094819]
[1722119062846,0.001,68871.0,68870.0,0.83494819]
[1722119063279,0.001,68871.0,68870.0,0.84694819]
[1722119064209,0.001,68871.0,68870.0,0.99720776]
[1722119064411,0.001,68871.0,68870.0,1.09720776]
[1722119064567,0.001,68871.0,68870.0,1.47252876]
[1722119064769,0.02378441,68871.0,68870.0,1.61600498]
[1722119065103,0.02378441,68871.0,68870.0,1.61600465]
[1722119065300,0.02378441,68871.0,68870.0,1.49552876]
[1722119065704,0.02378441,68871.0,68870.0,1.48352876]
[1722119065992,0.02278441,68871.0,68870.0,1.47252876]
[1722119066335,0.02278441,68871.0,68870.0,1.24020776]
[1722119066717,0.02378441,68871.0,68870.0,1.25420776]
[1722119067249,0.02378441,68871.0,68870.0,1.48652876]
[1722119067451,0.02378441,68871.0,68870.0,1.64647979]
[1722119067452,0.02278441,68871.0,68870.0,1.64647979]
[1722119067701,0.02378441,68871.0,68870.0,1.66046001]
[1722119067905,0.02378441,68871.0,68870.0,1.66046008]
[1722119068105,0.02378441,68871.0,68870.0,1.37460529]
[1722119068317,0.02378441,68871.0,68870.0,1.38860663]
[1722119068519,0.02378441,68871.0,68870.0,1.50900706]
[1722119069104,0.02278441,68871.0,68870.0,1.72732806]
[1722119069375,0.02278441,68871.0,68870.0,1.60692763]
[1722119069612,0.02278441,68871.0,68870.0,1.72757415]
[1722119070012,0.02378441,68871.0,68870.0,1.50925315]
[1722119070190,0.02378441,68871.0,68870.0,1.38860663]
[1722119070993,0.02378441,68871.0,68870.0,1.30560663]
[1722119071194,0.02378441,68871.0,68870.0,0.84002606]
[1722119072424,0.001,68871.0,68870.0,0.84002606]
[1722119072605,0.001,68871.0,68870.0,0.71962719]
[1722119074362,0.001,68871.0,68870.0,0.86988676]
[1722119074594,0.001,68871.0,68870.0,1.10220776]
[1722119074736,0.001,68871.0,68870.0,0.86988676]
[1722119074935,0.001,68871.0,68870.0,1.10220776]
[1722119075180,0.001,68871.0,68870.0,0.86988676]
[1722119075566,0.02378388,68871.0,68870.0,0.86988676]
[1722119075727,0.02378388,68871.0,68870.0,0.71962719]
[1722119076789,0.001,68871.0,68870.0,0.71962719]
[1722119079776,0.02378394,68871.0,68870.0,0.71962719]
[1722119080331,0.001,68871.0,68870.0,0.71962719]
[1722119083445,0.02378394,68871.0,68870.0,0.71962719]
[1722119084962,0.001,68871.0,68870.0,0.71962719]
[1722119085968,0.003,68871.0,68870.0,0.48730619]
[1722119086171,0.1471,68871.0,68870.0,0.13882519]
[1722119086989,0.16988541,68871.0,68870.0,0.13882519]
[1722119087193,0.16988541,68871.0,68870.0,0.12482519]
[1722119087334,0.16988541,68871.0,68870.0,0.13882519]
[1722119087736,0.16988541,68871.0,68870.0,0.03882519]
[1722119087960,0.16988541,68871.0,68870.0,0.028924]
[1722119088189,0.16888541,68871.0,68870.0,0.014924]
[1722119088575,0.16988541,68871.0,68870.0,0.028924]
[1722119088774,0.23010868,68871.0,68870.0,0.028924]
[1722119090459,0.16988541,68871.0,68870.0,0.028924]
[1722119090658,0.16988541,68871.0,68870.0,0.014924]
[1722119090862,0.16988541,68871.0,68870.0,0.023924]
[1722119090863,0.28604441,68871.0,68870.0,0.023924]
[1722119091076,0.96126929,68871.0,68870.0,0.023924]
[1722119091397,0.96126658,68871.0,68870.0,0.023924]
[1722119091938,0.23021201,68871.0,68870.0,0.023924]
[1722119092164,0.16888541,68871.0,68870.0,0.009924]
[1722119092445,0.16988541,68871.0,68870.0,0.01899628]
[1722119092582,0.16888541,68871.0,68870.0,0.003924]
[1722119093014,0.17188541,68871.0,68870.0,0.000924]
[1722119093216,0.1491,68871.0,68870.0,0.000924]
[1722119093659,0.1501,68871.0,68870.0,0.007924]
[1722119093970,0.1501,68871.0,68870.0,0.01499628]
[1722119094162,0.1501,68871.0,68870.0,0.01999628]
[1722119094833,0.1501,68871.0,68870.0,0.012924]
[1722119095134,0.1501,68871.0,68870.0,0.02117499]
[1722119095349,0.1501,68871.0,68870.0,0.01617499]
[1722119095561,0.14977053,68871.0,68870.0,0.01617499]
[1722119095725,0.14977053,68871.0,68870.0,0.13833499]
[1722119095947,0.14977053,68871.0,68870.0,0.130084]
[1722119096097,0.1481,68871.0,68870.0,0.13833499]
[1722119096291,0.1481,68871.0,68870.0,0.37065599]
[1722119096292,0.004,68871.0,68870.0,0.37065599]
[1722119097839,0.004,68871.0,68870.0,0.13833499]
[1722119097840,0.02678575,68871.0,68870.0,0.13833499]
[1722119098020,0.02845628,68871.0,68870.0,0.13833499]
[1722119099019,0.02678575,68871.0,68870.0,0.37065599]
[1722119100072,0.02678575,68871.0,68870.0,0.60297699]
[1722119101122,0.004,68871.0,68870.0,0.60297699]
[1722119101868,0.004,68871.0,68870.0,1.88049956]
[1722119102050,0.14277053,68898.0,68874.0,0.00032947]
[1722119102196,0.00167053,68895.0,68878.0,0.1411]
[1722119102392,0.00167053,68895.0,68889.0,0.232256]
[1722119102597,0.00167053,68895.0,68890.0,0.00981957]
[1722119102796,0.00167053,68895.0,68887.0,0.232263]
[1722119102998,0.00167053,68892.0,68891.0,0.00981549]
[1722119103196,0.00167053,68888.0,68887.0,0.232264]
[1722119103399,0.00167053,68888.0,68887.0,0.348396]
[1722119104486,0.00267053,68888.0,68887.0,0.362396]
[1722119104635,0.00267053,68888.0,68887.0,0.59466]
[1722119105591,0.02444912,68888.0,68887.0,0.348396]
[1722119105962,0.02444912,68888.0,68887.0,0.376396]
[1722119106361,0.02444912,68888.0,68887.0,0.362396]
[1722119107086,0.02444912,68888.0,68887.0,0.376396]
[1722119107308,0.02444912,68888.0,68887.0,0.390396]
[1722119107882,0.02444912,68888.0,68887.0,0.042]
[1722119108223,0.16554912,68888.0,68887.0,0.16685066]
[1722119108659,0.14277053,68888.0,68887.0,0.63137866]
[1722119108860,0.116104,68904.0,68888.0,0.23226]
[1722119108861,0.00167053,68892.0,68888.0,0.23226]
[1722119108999,0.00167053,68892.0,68891.0,0.116125]
[1722119110324,0.1411,68893.0,68892.0,0.116123]
[1722119110798,0.1411,68901.0,68895.0,0.232237]
[1722119111005,0.00167053,68902.0,68901.0,0.116108]
[1722119111205,0.00167053,68902.0,68901.0,0.348325]
[1722119111407,0.00167053,68902.0,68901.0,0.580542]
[1722119111808,0.00818,68906.0,68901.0,0.15025957]
[1722119112029,0.02277571,68902.0,68901.0,0.49858457]
[1722119112435,0.02277571,68902.0,68901.0,0.73080157]
[1722119112639,0.00818,68906.0,68905.0,0.348304]
[1722119112834,0.00818,68906.0,68905.0,0.580507]
[1722119113615,0.00818,68906.0,68905.0,0.96296957]
[1722119113820,0.00818,68906.0,68905.0,1.06296957]
[1722119114487,0.00818,68906.0,68905.0,1.07272795]
[1722119115031,0.00818,68906.0,68905.0,1.07972795]
[1722119115236,0.00818,68906.0,68905.0,1.08872795]
[1722119115844,0.00985053,68906.0,68905.0,0.85652495]
[1722119116045,0.03095344,68906.0,68905.0,0.85652495]
[1722119117854,0.00818,68906.0,68905.0,0.85652495]
[1722119121012,0.03262376,68906.0,68905.0,0.62432195]
[1722119121220,0.17522376,68906.0,68905.0,0.62432195]
[1722119122102,0.17522376,68906.0,68905.0,0.12575838]
[1722119122305,0.17522376,68906.0,68905.0,0.02575838]
[1722119122455,0.15245053,68906.0,68905.0,0.02575838]
[1722119123586,0.15245053,68906.0,68905.0,0.016]
[1722119124534,0.15245053,68906.0,68905.0,0.02575838]
[1722119125967,0.15245053,68906.0,68905.0,0.016]
[1722119126934,0.15245053,68906.0,68905.0,0.02575838]
[1722119128309,0.15245053,68906.0,68905.0,0.016]
[1722119129188,0.17522526,68906.0,68905.0,0.016]
[1722119129824,0.15245053,68906.0,68905.0,0.016]
[1722119130434,0.15245053,68906.0,68905.0,0.02575838]
[1722119131672,0.15245053,68906.0,68905.0,0.02253315]
[1722119133149,0.1752253,68906.0,68905.0,0.02253315]
[1722119133354,0.50075053,68906.0,68905.0,0.02253315]
[1722119133729,0.50075053,68906.0,68905.0,0.016]
[1722119133730,0.79149124,68906.0,68905.0,0.016]
[1722119134341,0.50075053,68906.0,68905.0,0.016]
[1722119134541,0.55919523,68906.0,68905.0,0.016]
[1722119135913,0.7094548,68906.0,68905.0,0.016]
[1722119136108,0.9416548,68906.0,68905.0,0.016]
[1722119136729,0.96443208,68906.0,68905.0,0.016]
[1722119136926,0.96443208,68906.0,68905.0,0.007]
[1722119137345,0.96443208,68906.0,68891.0,0.00880593]
[1722119137346,0.00167053,68892.0,68891.0,0.00880593]
[1722119137785,0.00167053,68892.0,68891.0,0.00655953]
[1722119138190,0.00167053,68889.0,68888.0,0.21613]
[1722119139383,0.00167053,68889.0,68888.0,0.22506226]
[1722119139583,0.00167053,68889.0,68888.0,0.23906226]
[1722119140018,0.00167053,68889.0,68888.0,0.12293226]
[1722119140556,0.00167053,68889.0,68888.0,0.13493226]
[1722119140874,0.02444909,68889.0,68888.0,0.13493226]
[1722119141484,0.02444909,68889.0,68888.0,0.25106226]
[1722119141907,0.00167053,68889.0,68888.0,0.13493226]
[1722119143659,0.00167053,68889.0,68888.0,0.03493226]
[1722119144431,0.00167053,68889.0,68888.0,0.04149745]
[1722119145379,0.02444935,68889.0,68888.0,0.04149745]
[1722119145503,0.00167053,68889.0,68888.0,0.04149745]
[1722119153378,0.16924919,68889.0,68888.0,0.04149745]
[1722119154113,0.14647053,68889.0,68888.0,0.04149745]
[1722119154516,0.00167053,68889.0,68888.0,0.04149745]
[1722119157384,0.02444977,68889.0,68888.0,0.04149745]
[1722119157964,0.00167053,68889.0,68888.0,0.04149745]
[1722119161456,0.02444977,68889.0,68888.0,0.04149745]
[1722119162890,0.02528977,68889.0,68888.0,0.04149745]
[1722119165262,0.02361924,68889.0,68888.0,0.04149745]
[1722119165495,0.02361924,68889.0,68888.0,0.10579745]
[1722119166437,0.02361924,68889.0,68888.0,0.04149745]
[1722119166660,0.02528977,68889.0,68888.0,0.04149745]
[1722119169443,0.00251053,68889.0,68888.0,0.04149745]
[1722119175961,0.02528899,68889.0,68888.0,0.04149745]
[1722119182368,0.00251053,68889.0,68888.0,0.04149745]
[1722119185831,0.14121053,68889.0,68888.0,0.04149745]
[1722119186033,0.2010517,68889.0,68888.0,0.04149745]
[1722119186190,0.1994975,68889.0,68888.0,0.04149745]